fUSD/lending_fUSD_20251001
["ID","MTS","AMOUNT","RATE_DAILY","PERIOD"]
[388685227,1759318256124,-502.83768011,0.00022173,2]
[388685228,1759318256134,-500.0,0.00022173,2]
[388685229,1759318256144,-302.46761904,0.00022173,2]
[388685230,1759318256154,-166.25539774,0.00022173,2]
[388685231,1759318256164,-500.0,0.00022173,2]
[388685232,1759318256174,-500.0,0.00022173,2]
[388685233,1759318256183,-500.0,0.00022173,2]
[388685234,1759318256193,-500.0,0.00022173,2]
[388685235,1759318256203,-513.69943069,0.00022173,2]
[388685236,1759318256214,-500.0,0.00022173,2]
[388685237,1759318256223,-500.0,0.00022173,2]
[388685238,1759318256233,-500.0,0.00022173,2]
[388685239,1759318256243,-502.12558573,0.00022173,2]
[388685240,1759318256253,-163.22686606,0.00022173,2]
[388685241,1759318256263,-500.0,0.00022173,2]
[388685242,1759318256273,-278.23855342,0.00022173,2]
[388685243,1759318256283,-257.60398807,0.00022173,2]
[388685244,1759318256292,-500.0,0.00022173,2]
[388685245,1759318256302,-500.0,0.00022173,2]
[388685246,1759318256311,-500.0,0.00022173,2]
[388685247,1759318256321,-501.03370331,0.00022173,2]
[388685248,1759318256331,-500.0,0.00022173,2]
[388685249,1759318256342,-500.0,0.00022173,2]
[388685250,1759318256351,-500.0,0.00022173,2]
[388685251,1759318256361,-170.10114348,0.00022173,2]
[388685252,1759318256371,-534.79820665,0.00022173,2]
[388685253,1759318256381,-150.0,0.00022178,2]
[388685254,1759318256391,-150.0,0.00022178,2]
[388685255,1759318256401,-150.0,0.00022178,2]
[388685256,1759318256412,-500.0,0.00022178,2]
[388685257,1759318256422,-453.0,0.00022178,2]
[388685258,1759318256432,-500.0,0.00022178,2]
[388685259,1759318256442,-500.0,0.00022178,2]
[388685260,1759318256452,-150.0,0.00022178,2]
[388685261,1759318256463,-182.1371463,0.00022178,2]
[388685262,1759318256473,-284.0,0.00022178,2]
[388685263,1759318256482,-651.54108319,0.00022182,2]
[388685264,1759318256492,-1000.0,0.0002219,2]
[388685265,1759318256502,-1000.0,0.0002219,2]
[388685266,1759318256512,-522.42808612,0.0002219,2]
[388685267,1759318256522,-500.0,0.00022191,2]
[388685268,1759318256532,-4448.0,0.00022191,2]
[388685269,1759318256541,-500.0,0.00022191,2]
[388685270,1759318256552,-500.0,0.00022191,2]
[388685271,1759318256562,-1429.29,0.00022191,2]
[388685272,1759318256573,-500.0,0.00022191,2]
[388685273,1759318256583,-931.7,0.00022191,2]
[388685274,1759318256593,-500.0,0.00022191,2]
[388685275,1759318256603,-500.0,0.00022191,2]
[388685276,1759318256613,-500.0,0.00022191,2]
[388685277,1759318256622,-564.99,0.00022191,2]
[388685278,1759318256632,-1237.47,0.00022191,2]
[388685279,1759318256642,-500.0,0.00022191,2]
[388685280,1759318256652,-1368.58,0.00022191,2]
[388685281,1759318256661,-500.0,0.00022191,2]
[388685282,1759318256672,-500.0,0.00022191,2]
[388685283,1759318256681,-1020.59,0.00022191,2]
[388685284,1759318256690,-500.0,0.00022191,2]
[388685285,1759318256700,-500.0,0.00022191,2]
[388685286,1759318256710,-500.0,0.00022191,2]
[388685287,1759318256720,-500.0,0.00022191,2]
[388685288,1759318256729,-542.25,0.00022191,2]
[388685289,1759318256745,-2330.26,0.00022191,2]
[388685290,1759318256754,-908.17,0.00022191,2]
[388685291,1759318256764,-883.05,0.00022191,2]
[388685292,1759318256777,-2291.28,0.00022191,2]
[388685293,1759318256787,-500.0,0.00022191,2]
[388685294,1759318256796,-500.0,0.00022191,2]
[388685295,1759318256807,-500.0,0.00022191,2]
[388685296,1759318256817,-500.0,0.00022191,2]
[388685297,1759318256826,-500.0,0.00022191,2]
[388685298,1759318256836,-500.0,0.00022191,2]
[388685299,1759318256848,-500.0,0.00022191,2]
[388685300,1759318256857,-500.0,0.00022191,2]
[388685301,1759318256866,-500.0,0.00022191,2]
[388685302,1759318256875,-608.79,0.00022191,2]
[388685303,1759318256884,-899.39,0.00022191,2]
[388685304,1759318256894,-500.0,0.00022191,2]
[388685305,1759318256903,-500.0,0.00022191,2]
[388685306,1759318256912,-1122.01,0.00022191,2]
[388685307,1759318256922,-692.34,0.00022191,2]
[388685308,1759318256931,-672.48,0.00022191,2]
[388685309,1759318256940,-500.0,0.00022191,2]
[388685310,1759318256949,-677.66,0.00022191,2]
[388685311,1759318256960,-500.0,0.00022191,2]
[388685312,1759318256970,-579.13,0.00022191,2]
[388685313,1759318256979,-500.0,0.00022191,2]
[388685314,1759318256988,-500.0,0.00022191,2]
[388685315,1759318256998,-500.0,0.00022191,2]
[388685316,1759318257007,-500.0,0.00022191,2]
[388685317,1759318257016,-500.0,0.00022191,2]
[388685318,1759318257025,-500.0,0.00022191,2]
[388685319,1759318257035,-814.42,0.00022191,2]
[388685320,1759318257044,-500.0,0.00022191,2]
[388685321,1759318257053,-500.0,0.00022191,2]
[388685322,1759318257062,-500.0,0.00022191,2]
[388685323,1759318257071,-1734.4,0.00022191,2]
[388685324,1759318257081,-1734.4,0.00022191,2]
[388685325,1759318257090,-500.0,0.00022191,2]
[388685326,1759318257099,-512.22992291,0.00022191,2]
[388685327,1759318257108,-500.0,0.00022191,2]
[388685328,1759318257117,-500.0,0.00022191,2]
[388685329,1759318257127,-570.57,0.00022191,2]
[388685330,1759318257136,-520.39,0.00022191,2]
[388685331,1759318257145,-500.0,0.00022191,2]
[388685332,1759318257155,-500.0,0.00022191,2]
[388685333,1759318257164,-500.0,0.00022191,2]
[388685334,1759318257174,-500.0,0.00022191,2]
[388685335,1759318257184,-500.0,0.00022191,2]
[388685336,1759318257193,-500.0,0.00022191,2]
[388685337,1759318257202,-500.0,0.00022191,2]
[388685338,1759318257212,-500.0,0.00022191,2]
[388685339,1759318257222,-500.0,0.00022191,2]
[388685340,1759318257231,-2112.03,0.00022191,2]
[388685341,1759318257240,-454.44683655,0.00022191,2]
[388685342,1759318257249,-380.91140343,0.00022191,2]
[388685343,1759318257259,-500.0,0.00022191,2]
[388685344,1759318257268,-375.61979663,0.00022191,2]
[388685345,1759318257277,-500.0,0.00022191,2]
[388685346,1759318257286,-500.0,0.00022191,2]
[388685347,1759318257295,-500.0,0.00022191,2]
[388685348,1759318257305,-500.0,0.00022191,2]
[388685349,1759318257314,-500.0,0.00022191,2]
[388685350,1759318257323,-662.1,0.00022191,2]
[388685351,1759318257333,-500.0,0.00022191,2]
[388685352,1759318257342,-500.0,0.00022191,2]
[388685353,1759318257351,-500.0,0.00022191,2]
[388685354,1759318257361,-500.0,0.00022191,2]
[388685355,1759318257370,-1441.18,0.00022191,2]
[388685356,1759318257379,-500.0,0.00022191,2]
[388685357,1759318257389,-500.0,0.00022191,2]
[388685358,1759318257398,-500.0,0.00022191,2]
[388685359,1759318257407,-500.0,0.00022191,2]
[388685360,1759318257417,-167.51351996,0.00022191,2]
[388685361,1759318257426,-500.0,0.00022191,2]
[388685362,1759318257436,-500.0,0.00022191,2]
[388685363,1759318257445,-500.0,0.00022191,2]
[388685364,1759318257454,-2243.63,0.00022191,2]
[388685365,1759318257463,-500.0,0.00022191,2]
[388685366,1759318257472,-500.0,0.00022191,2]
[388685367,1759318257481,-500.0,0.00022191,2]
[388685368,1759318257491,-500.0,0.00022191,2]
[388685369,1759318257500,-712.46,0.00022191,2]
[388685370,1759318257509,-500.0,0.00022191,2]
[388685371,1759318257519,-172.088584,0.00022191,2]
[388685372,1759318257528,-500.0,0.00022191,2]
[388685373,1759318257537,-500.0,0.00022191,2]
[388685374,1759318257547,-5388.95684,0.00022191,2]
[388685375,1759318257556,-500.0,0.00022191,2]
[388685376,1759318257566,-3006.026575,0.00022191,2]
[388685377,1759318257575,-500.0,0.00022191,2]
[388685378,1759318257584,-500.0,0.00022191,2]
[388685379,1759318257594,-500.0,0.00022191,2]
[388685380,1759318257603,-500.0,0.00022191,2]
[388685381,1759318257613,-500.0,0.00022191,2]
[388685382,1759318257621,-500.0,0.00022191,2]
[388685383,1759318257631,-207.82546807,0.00022191,2]
[388685384,1759318258451,-292.17453193,0.00022191,2]
[388685385,1759318258463,-863.52546807,0.00022191,2]
[388685386,1759318259925,-3736.18,0.00021917,2]
[388685387,1759318259937,-151.0,0.00021917,2]
[388685388,1759318259949,-566.81,0.00021917,2]
[388685389,1759318259961,-244.924846,0.00021917,2]
[388685390,1759318259973,-4659.52437793,0.00022191,2]
[388685391,1759318259984,-706.01,0.00022191,2]
[388685392,1759318259996,-500.0,0.00022191,2]
[388685393,1759318260008,-500.0,0.00022191,2]
[388685394,1759318260021,-500.0,0.00022191,2]
[388685396,1759318260036,-405.82605447,0.00022191,2]
[388685397,1759318260048,-500.0,0.00022191,2]
[388685398,1759318260060,-706.11,0.00022191,2]
[388685399,1759318260072,-525.64,0.00022191,2]
[388685400,1759318260084,-912.73,0.00022191,2]
[388685401,1759318260097,-500.0,0.00022191,2]
[388685402,1759318260109,-500.0,0.00022191,2]
[388685403,1759318260121,-500.0,0.00022191,2]
[388685404,1759318260133,-508.57,0.00022191,2]
[388685405,1759318260144,-500.0,0.00022191,2]
[388685406,1759318260158,-500.0,0.00022191,2]
[388685407,1759318260169,-500.0,0.00022191,2]
[388685408,1759318260181,-782.37,0.00022191,2]
[388685409,1759318260193,-500.0,0.00022191,2]
[388685410,1759318260205,-500.0,0.00022191,2]
[388685411,1759318260217,-1002.1,0.00022191,2]
[388685412,1759318260229,-1284.18,0.00022191,2]
[388685413,1759318260240,-713.3,0.00022191,2]
[388685414,1759318260254,-733.41,0.00022191,2]
[388685415,1759318260266,-500.0,0.00022191,2]
[388685416,1759318260278,-1384.31,0.00022191,2]
[388685417,1759318260289,-772.53,0.00022191,2]
[388685418,1759318260302,-515.46,0.00022191,2]
[388685419,1759318260314,-500.0,0.00022191,2]
[388685420,1759318260327,-564.54,0.00022191,2]
[388685421,1759318260339,-1013.21,0.00022191,2]
[388685422,1759318260351,-500.0,0.00022191,2]
[388685423,1759318260363,-500.0,0.00022191,2]
[388685424,1759318260375,-624.09,0.00022191,2]
[388685425,1759318260387,-500.0,0.00022191,2]
[388685426,1759318260399,-518.34,0.00022191,2]
[388685427,1759318260410,-755.04,0.00022191,2]
[388685428,1759318260423,-500.0,0.00022191,2]
[388685429,1759318260435,-500.0,0.00022191,2]
[388685430,1759318260447,-500.0,0.00022191,2]
[388685431,1759318260459,-709.78,0.00022191,2]
[388685432,1759318260471,-500.0,0.00022191,2]
[388685433,1759318260484,-1189.67,0.00022191,2]
[388685434,1759318260496,-500.0,0.00022191,2]
[388685435,1759318260508,-603.93220626,0.00022191,2]
[388685436,1759318260520,-500.0,0.00022191,2]
[388685437,1759318260532,-994.01,0.00022191,2]
[388685438,1759318260545,-500.0,0.00022191,2]
[388685439,1759318260557,-500.0,0.00022191,2]
[388685440,1759318260570,-538.23,0.00022191,2]
[388685441,1759318260587,-500.0,0.00022191,2]
[388685442,1759318260599,-603.34,0.00022191,2]
[388685443,1759318260611,-500.0,0.00022191,2]
[388685444,1759318260623,-1708.78,0.00022191,2]
[388685445,1759318260635,-735.92,0.00022191,2]
[388685446,1759318260650,-500.0,0.00022191,2]
[388685447,1759318260662,-500.0,0.00022191,2]
[388685448,1759318260675,-500.0,0.00022191,2]
[388685449,1759318260687,-696.73,0.00022191,2]
[388685450,1759318260699,-615.66,0.00022191,2]
[388685451,1759318260711,-500.0,0.00022191,2]
[388685452,1759318260722,-682.76,0.00022191,2]
[388685453,1759318260734,-727.15,0.00022191,2]
[388685454,1759318260745,-598.24,0.00022191,2]
[388685455,1759318260758,-500.0,0.00022191,2]
[388685456,1759318260772,-500.0,0.00022191,2]
[388685457,1759318260784,-1327.41,0.00022191,2]
[388685458,1759318260795,-630.07,0.00022191,2]
[388685459,1759318260808,-797.8,0.00022191,2]
[388685460,1759318260819,-500.0,0.00022191,2]
[388685461,1759318260831,-500.0,0.00022191,2]
[388685462,1759318260843,-940.59,0.00022191,2]
[388685463,1759318260854,-627.2,0.00022191,2]
[388685464,1759318260866,-500.0,0.00022191,2]
[388685465,1759318260878,-500.0,0.00022191,2]
[388685466,1759318260889,-500.0,0.00022191,2]
[388685467,1759318260901,-938.74,0.00022191,2]
[388685468,1759318260913,-500.0,0.00022191,2]
[388685469,1759318260926,-1459.36,0.00022191,2]
[388685470,1759318260938,-633.98,0.00022191,2]
[388685471,1759318260949,-500.0,0.00022191,2]
[388685472,1759318260961,-500.0,0.00022191,2]
[388685473,1759318260973,-2119.06,0.00022191,2]
[388685474,1759318260984,-500.0,0.00022191,2]
[388685475,1759318260996,-2643.28,0.00022191,2]
[388685476,1759318261008,-500.0,0.00022191,2]
[388685477,1759318261020,-500.0,0.00022191,2]
[388685478,1759318261032,-2841.12,0.00022191,2]
[388685479,1759318261046,-500.0,0.00022191,2]
[388685480,1759318261058,-500.0,0.00022191,2]
[388685481,1759318261070,-500.0,0.00022191,2]
[388685482,1759318261082,-500.0,0.00022191,2]
[388685483,1759318261094,-500.0,0.00022191,2]
[388685484,1759318261105,-500.0,0.00022191,2]
[388685485,1759318261116,-500.0,0.00022191,2]
[388685486,1759318261128,-500.0,0.00022191,2]
[388685487,1759318261139,-200.06441536,0.00022191,2]
[388685488,1759318261150,-500.0,0.00022191,2]
[388685489,1759318261161,-500.0,0.00022191,2]
[388685490,1759318261173,-500.0,0.00022191,2]
[388685491,1759318261185,-500.0,0.00022191,2]
[388685492,1759318261197,-500.0,0.00022191,2]
[388685493,1759318261209,-500.0,0.00022191,2]
[388685494,1759318261220,-663.86,0.00022191,2]
[388685495,1759318261230,-500.0,0.00022191,2]
[388685496,1759318261241,-752.15,0.00022191,2]
[388685497,1759318261251,-659.45,0.00022191,2]
[388685498,1759318261260,-500.0,0.00022191,2]
[388685499,1759318261269,-655.93,0.00022191,2]
[388685500,1759318261278,-500.0,0.00022191,2]
[388685501,1759318261289,-500.0,0.00022191,2]
[388685502,1759318261298,-278.00573422,0.00022191,2]
[388685503,1759318261307,-743.44,0.00022191,2]
[388685504,1759318261316,-500.0,0.00022191,2]
[388685505,1759318261326,-1013.95,0.00022191,2]
[388685506,1759318261335,-500.0,0.00022191,2]
[388685507,1759318261345,-500.0,0.00022191,2]
[388685508,1759318261355,-500.0,0.00022191,2]
[388685509,1759318261364,-500.0,0.00022191,2]
[388685510,1759318261373,-500.0,0.00022191,2]
[388685511,1759318261382,-500.0,0.00022191,2]
[388685512,1759318261392,-500.0,0.00022191,2]
[388685513,1759318261401,-500.0,0.00022191,2]
[388685514,1759318261410,-557.55,0.00022191,2]
[388685515,1759318261420,-500.0,0.00022191,2]
[388685516,1759318261429,-523.59,0.00022191,2]
[388685517,1759318261439,-714.54,0.00022191,2]
[388685518,1759318261449,-500.0,0.00022191,2]
[388685519,1759318261458,-500.0,0.00022191,2]
[388685520,1759318261468,-500.0,0.00022191,2]
[388685521,1759318261478,-1146.08,0.00022191,2]
[388685522,1759318261488,-1837.04,0.00022191,2]
[388685523,1759318261497,-761.57,0.00022191,2]
[388685524,1759318261507,-500.0,0.00022191,2]
[388685525,1759318261516,-500.0,0.00022191,2]
[388685526,1759318261525,-500.0,0.00022191,2]
[388685527,1759318261539,-500.0,0.00022191,2]
[388685528,1759318261554,-500.0,0.00022191,2]
[388685529,1759318261574,-204.5962458,0.00022191,2]
[388685530,1759318261584,-267.53611334,0.00022191,2]
[388685531,1759318261594,-500.0,0.00022191,2]
[388685532,1759318261604,-859.29,0.00022191,2]
[388685533,1759318261614,-500.0,0.00022191,2]
[388685534,1759318261624,-500.0,0.00022191,2]
[388685535,1759318261634,-500.0,0.00022191,2]
[388685536,1759318261643,-500.0,0.00022191,2]
[388685537,1759318261652,-500.0,0.00022191,2]
[388685538,1759318261662,-1150.73,0.00022191,2]
[388685539,1759318261672,-707.32,0.00022191,2]
[388685540,1759318261682,-500.0,0.00022191,2]
[388685541,1759318261692,-624.85,0.00022191,2]
[388685542,1759318261701,-468.52005137,0.00022191,2]
[388685543,1759318261711,-1033.59,0.00022191,2]
[388685544,1759318261720,-1633.54,0.00022191,2]
[388685545,1759318261730,-500.0,0.00022191,2]
[388685546,1759318261739,-1419.35,0.00022191,2]
[388685547,1759318261749,-1702.35,0.00022191,2]
[388685548,1759318261759,-500.0,0.00022191,2]
[388685549,1759318261772,-1065.94,0.00022191,2]
[388685550,1759318261781,-500.0,0.00022191,2]
[388685551,1759318261790,-166.78286138,0.00022191,2]
[388685552,1759318261801,-500.0,0.00022191,2]
[388685553,1759318261810,-500.0,0.00022191,2]
[388685554,1759318261820,-513.07,0.00022191,2]
[388685555,1759318261829,-500.0,0.00022191,2]
[388685556,1759318261839,-2249.68,0.00022191,2]
[388685557,1759318261849,-500.0,0.00022191,2]
[388685558,1759318261858,-500.0,0.00022191,2]
[388685559,1759318261867,-601.17,0.00022191,2]
[388685560,1759318261877,-1464.01,0.00022191,2]
[388685561,1759318261888,-907.41,0.00022191,2]
[388685562,1759318261897,-3074.58,0.00022191,2]
[388685563,1759318261906,-563.38,0.00022191,2]
[388685564,1759318261916,-1681.18,0.00022191,2]
[388685565,1759318261925,-500.0,0.00022191,2]
[388685566,1759318261934,-500.0,0.00022191,2]
[388685567,1759318261943,-666.02,0.00022191,2]
[388685568,1759318261952,-500.0,0.00022191,2]
[388685569,1759318261962,-531.15,0.00022191,2]
[388685570,1759318261971,-3287.32,0.00022191,2]
[388685571,1759318262848,-595.93,0.00022191,2]
[388685572,1759318262867,-1090.46,0.00022191,2]
[388685573,1759318262899,-500.0,0.00022191,2]
[388685574,1759318262921,-500.0,0.00022191,2]
[388685575,1759318262945,-845.06,0.00022191,2]
[388685576,1759318262959,-500.0,0.00022191,2]
[388685577,1759318262970,-663.16,0.00022191,2]
[388685578,1759318262979,-500.0,0.00022191,2]
[388685579,1759318262988,-2422.42,0.00022191,2]
[388685580,1759318262998,-647.83,0.00022191,2]
[388685581,1759318263007,-500.0,0.00022191,2]
[388685582,1759318263016,-500.0,0.00022191,2]
[388685583,1759318263025,-500.0,0.00022191,2]
[388685584,1759318263034,-500.0,0.00022191,2]
[388685585,1759318263043,-2663.24,0.00022191,2]
[388685586,1759318263054,-500.0,0.00022191,2]
[388685587,1759318263064,-1364.4,0.00022191,2]
[388685588,1759318263075,-2107.35,0.00022191,2]
[388685589,1759318263084,-1219.87,0.00022191,2]
[388685590,1759318263093,-579.16,0.00022191,2]
[388685591,1759318263102,-500.0,0.00022191,2]
[388685592,1759318263115,-500.0,0.00022191,2]
[388685593,1759318263125,-618.49,0.00022191,2]
[388685594,1759318263134,-584.09,0.00022191,2]
[388685595,1759318263143,-2393.65,0.00022191,2]
[388685596,1759318263152,-500.0,0.00022191,2]
[388685597,1759318263161,-1446.28,0.00022191,2]
[388685598,1759318263170,-1903.98,0.00022191,2]
[388685599,1759318263180,-1805.51,0.00022191,2]
[388685600,1759318263190,-1644.47,0.00022191,2]
[388685601,1759318263200,-500.0,0.00022191,2]
[388685602,1759318263210,-541.65,0.00022191,2]
[388685603,1759318263219,-500.0,0.00022191,2]
[388685604,1759318263228,-500.0,0.00022191,2]
[388685605,1759318263237,-3732.83,0.00022191,2]
[388685606,1759318263246,-500.0,0.00022191,2]
[388685607,1759318263255,-2357.35,0.00022191,2]
[388685608,1759318263264,-2147.62,0.00022191,2]
[388685609,1759318263273,-4135.34,0.00022191,2]
[388685610,1759318263282,-500.0,0.00022191,2]
[388685611,1759318263292,-500.0,0.00022191,2]
[388685612,1759318263301,-500.0,0.00022191,2]
[388685613,1759318263311,-3101.97,0.00022191,2]
[388685614,1759318263320,-941.02,0.00022191,2]
[388685615,1759318263329,-500.0,0.00022191,2]
[388685616,1759318263339,-3254.59,0.00022191,2]
[388685617,1759318263348,-2391.09,0.00022191,2]
[388685618,1759318263358,-1514.2,0.00022191,2]
[388685619,1759318263368,-500.0,0.00022191,2]
[388685620,1759318263377,-770.79,0.00022191,2]
[388685621,1759318263388,-500.0,0.00022191,2]
[388685622,1759318263398,-962.28,0.00022191,2]
[388685623,1759318263408,-681.62,0.00022191,2]
[388685624,1759318263417,-500.0,0.00022191,2]
[388685625,1759318263428,-1159.88,0.00022191,2]
[388685626,1759318263438,-500.0,0.00022191,2]
[388685627,1759318263448,-500.0,0.00022191,2]
[388685628,1759318263457,-2067.68,0.00022191,2]
[388685629,1759318263468,-1378.05,0.00022191,2]
[388685630,1759318263479,-500.0,0.00022191,2]
[388685631,1759318263488,-656.68,0.00022191,2]
[388685632,1759318263498,-2963.7,0.00022191,2]
[388685633,1759318263509,-500.0,0.00022191,2]
[388685634,1759318263518,-710.7,0.00022191,2]
[388685635,1759318263529,-500.0,0.00022191,2]
[388685636,1759318263539,-3612.14,0.00022191,2]
[388685637,1759318263550,-500.0,0.00022191,2]
[388685638,1759318263561,-3248.18,0.00022191,2]
[388685639,1759318263571,-608.62,0.00022191,2]
[388685640,1759318263581,-728.03,0.00022191,2]
[388685641,1759318263591,-500.0,0.00022191,2]
[388685642,1759318263601,-1191.17,0.00022191,2]
[388685643,1759318263611,-500.0,0.00022191,2]
[388685644,1759318263620,-800.96,0.00022191,2]
[388685645,1759318263630,-500.0,0.00022191,2]
[388685646,1759318263640,-3532.24,0.00022191,2]
[388685647,1759318263649,-2500.69,0.00022191,2]
[388685648,1759318263659,-1636.7,0.00022191,2]
[388685649,1759318263668,-2443.41,0.00022191,2]
[388685650,1759318263677,-500.0,0.00022191,2]
[388685651,1759318263687,-417.0570942,0.00022191,2]
[388685652,1759318263697,-723.35,0.00022191,2]
[388685653,1759318263706,-500.0,0.00022191,2]
[388685654,1759318263715,-500.0,0.00022191,2]
[388685655,1759318263724,-500.0,0.00022191,2]
[388685656,1759318263737,-500.0,0.00022191,2]
[388685657,1759318263747,-2124.88,0.00022191,2]
[388685658,1759318263756,-1916.33,0.00022191,2]
[388685659,1759318263768,-538.36,0.00022191,2]
[388685660,1759318263779,-993.96,0.00022191,2]
[388685661,1759318263789,-3236.9,0.00022191,2]
[388685662,1759318263798,-500.0,0.00022191,2]
[388685663,1759318263810,-500.0,0.00022191,2]
[388685664,1759318263819,-1593.36,0.00022191,2]
[388685665,1759318263828,-3142.12,0.00022191,2]
[388685666,1759318263838,-500.0,0.00022191,2]
[388685667,1759318263850,-500.0,0.00022191,2]
[388685668,1759318263859,-500.0,0.00022191,2]
[388685669,1759318263868,-500.0,0.00022191,2]
[388685670,1759318263877,-500.0,0.00022191,2]
[388685671,1759318263887,-2050.53,0.00022191,2]
[388685672,1759318263896,-500.0,0.00022191,2]
[388685673,1759318263906,-500.0,0.00022191,2]
[388685674,1759318263916,-1132.84,0.00022191,2]
[388685675,1759318263926,-500.0,0.00022191,2]
[388685676,1759318263936,-500.0,0.00022191,2]
[388685677,1759318263945,-500.0,0.00022191,2]
[388685678,1759318263954,-643.49,0.00022191,2]
[388685679,1759318263964,-500.0,0.00022191,2]
[388685680,1759318263973,-500.0,0.00022191,2]
[388685681,1759318263983,-500.0,0.00022191,2]
[388685682,1759318263992,-500.0,0.00022191,2]
[388685683,1759318264002,-2403.04,0.00022191,2]
[388685684,1759318264011,-824.01,0.00022191,2]
[388685685,1759318264020,-500.0,0.00022191,2]
[388685686,1759318264030,-500.0,0.00022191,2]
[388685687,1759318264039,-500.0,0.00022191,2]
[388685688,1759318264049,-3512.45,0.00022191,2]
[388685689,1759318264059,-500.0,0.00022191,2]
[388685690,1759318264068,-2800.99,0.00022191,2]
[388685691,1759318264078,-500.0,0.00022191,2]
[388685692,1759318264087,-500.0,0.00022191,2]
[388685693,1759318264096,-681.91,0.00022191,2]
[388685694,1759318264106,-839.73,0.00022191,2]
[388685695,1759318264115,-1073.82,0.00022191,2]
[388685696,1759318264125,-801.63,0.00022191,2]
[388685697,1759318264134,-1935.03,0.00022191,2]
[388685698,1759318264144,-2976.65,0.00022191,2]
[388685699,1759318264153,-556.11,0.00022191,2]
[388685700,1759318264163,-1662.05,0.00022191,2]
[388685701,1759318264172,-522.14,0.00022191,2]
[388685702,1759318264182,-500.0,0.00022191,2]
[388685703,1759318264194,-500.0,0.00022191,2]
[388685704,1759318264203,-2204.69,0.00022191,2]
[388685705,1759318264212,-500.0,0.00022191,2]
[388685706,1759318264222,-1486.33,0.00022191,2]
[388685707,1759318264231,-2224.55,0.00022191,2]
[388685708,1759318264240,-551.8,0.00022191,2]
[388685709,1759318264249,-244.59785407,0.00022191,2]
[388685710,1759318264258,-2883.77,0.00022191,2]
[388685711,1759318264269,-500.0,0.00022191,2]
[388685712,1759318264278,-500.0,0.00022191,2]
[388685713,1759318264288,-500.0,0.00022191,2]
[388685714,1759318264297,-818.65,0.00022191,2]
[388685715,1759318264307,-500.0,0.00022191,2]
[388685716,1759318264316,-1355.36,0.00022191,2]
[388685717,1759318264326,-3470.71,0.00022191,2]
[388685718,1759318264335,-1173.63,0.00022191,2]
[388685719,1759318264345,-1307.25,0.00022191,2]
[388685720,1759318264354,-548.03,0.00022191,2]
[388685721,1759318264364,-500.0,0.00022191,2]
[388685722,1759318264373,-1805.48,0.00022191,2]
[388685723,1759318264383,-2255.79,0.00022191,2]
[388685724,1759318264392,-500.0,0.00022191,2]
[388685725,1759318264401,-2282.67,0.00022191,2]
[388685726,1759318264411,-1465.08,0.00022191,2]
[388685727,1759318264420,-1720.52,0.00022191,2]